fUST/lending_fUST_20250910
["ID","MTS","AMOUNT","RATE_DAILY","PERIOD"]
[384649773,1757499050073,-151.0,0.0001599,2]
[384649774,1757499050083,-243.146933,0.00016064,2]
[384649775,1757499050092,-438.836658,0.00016164,2]
[384649776,1757499050102,-152.734877,0.00016164,2]
[384649777,1757499050111,-151.0,0.00016164,2]
[384649778,1757499050120,-480.0,0.00016164,2]
[384649779,1757499050130,-176.03,0.00016164,2]
[384649780,1757499050140,-151.0,0.00016164,2]
[384649781,1757499050149,-151.0,0.00016164,2]
[384649782,1757499050158,-151.0,0.00016164,2]
[384649783,1757499050167,-151.0,0.00016164,2]
[384649784,1757499050177,-480.0,0.00016164,2]
[384649785,1757499050187,-277.148617,0.00016164,2]
[384649786,1757499050197,-1364.51,0.00016164,2]
[384649787,1757499050207,-691.05,0.00016164,2]
[384649788,1757499050218,-151.0,0.00016164,2]
[384649789,1757499050227,-480.0,0.00016164,2]
[384649790,1757499050236,-480.0,0.00016164,2]
[384649791,1757499050246,-480.0,0.00016164,2]
[384649792,1757499050255,-480.0,0.00016164,2]
[384649793,1757499050265,-480.0,0.00016164,2]
[384649794,1757499050275,-480.0,0.00016164,2]
[384649795,1757499050286,-480.0,0.00016164,2]
[384649796,1757499050296,-480.0,0.00016164,2]
[384649797,1757499050305,-4564.72,0.00016164,2]
[384649798,1757499050315,-1739.36,0.00016164,2]
[384649799,1757499050326,-480.0,0.00016164,2]
[384649801,1757499050335,-480.0,0.00016164,2]
[384649803,1757499050344,-493.66,0.00016164,2]
[384649804,1757499050354,-2500.0,0.00016164,2]
[384649806,1757499050363,-2500.0,0.00016164,2]
[384649808,1757499050373,-2500.0,0.00016164,2]
[384649810,1757499050383,-1488.4519783,0.00016205,2]
[384649811,1757499050392,-151.90053,0.00016205,2]
[384649812,1757499050402,-720.0,0.0001629,2]
[384649813,1757499050412,-1667.42701485,0.00016412,2]
[384649814,1757499050421,-720.0,0.00016419,2]
[384649815,1757499050431,-185.68058144,0.00016438,2]
[384649816,1757499050441,-187.36339,0.00016438,2]
[384649817,1757499050450,-151.0,0.00016438,2]
[384649818,1757499050460,-187.36339,0.00016438,2]
[384649819,1757499050469,-151.0,0.00016438,2]
[384649820,1757499050479,-187.36339,0.00016438,2]
[384649821,1757499050489,-151.0,0.00016438,2]
[384649822,1757499050498,-187.36339,0.00016438,2]
[384649823,1757499050508,-157.68064,0.00016438,2]
[384649824,1757499050518,-1364.51,0.00016438,2]
[384649825,1757499050528,-691.05,0.00016438,2]
[384649826,1757499050537,-480.0,0.00016438,2]
[384649827,1757499050547,-480.0,0.00016438,2]
[384649828,1757499050557,-480.0,0.00016438,2]
[384649829,1757499050566,-480.0,0.00016438,2]
[384649830,1757499050599,-4564.72,0.00016438,2]
[384649831,1757499050610,-1739.36,0.00016438,2]
[384649832,1757499050619,-480.0,0.00016438,2]
[384649833,1757499050628,-493.66,0.00016438,2]
[384649835,1757499050637,-151.0,0.00016438,2]
[384649836,1757499050647,-151.0,0.00016438,2]
[384649837,1757499050655,-151.0,0.00016438,2]
[384649838,1757499050665,-151.0,0.00016438,2]
[384649840,1757499050674,-151.0,0.00016438,2]
[384649842,1757499050683,-151.0,0.00016438,2]
[384649844,1757499050692,-151.0,0.00016438,2]
[384649845,1757499050702,-151.0,0.00016438,2]
[384649846,1757499050710,-151.0,0.00016438,2]
[384649847,1757499050720,-151.0,0.00016438,2]
[384649848,1757499050729,-151.0,0.00016438,2]
[384649849,1757499050738,-151.0,0.00016438,2]
[384649850,1757499050747,-151.0,0.00016438,2]
[384649851,1757499050756,-151.0,0.00016438,2]
[384649852,1757499050765,-298.254785,0.00016438,2]
[384649853,1757499050775,-1000.0,0.00016438,2]
[384649854,1757499050784,-1000.0,0.00016438,2]
[384649855,1757499050793,-1000.0,0.00016438,2]
[384649856,1757499050803,-1000.0,0.00016438,2]
[384649857,1757499050812,-1000.0,0.00016438,2]
[384649858,1757499050821,-1000.0,0.00016438,2]
[384649859,1757499050830,-1000.0,0.00016438,2]
[384649860,1757499050839,-1000.0,0.00016438,2]
[384649861,1757499050849,-1000.0,0.00016438,2]
[384649862,1757499050858,-1000.0,0.00016438,2]
[384649863,1757499050868,-1000.0,0.00016438,2]
[384649864,1757499050877,-1000.0,0.00016438,2]
[384649865,1757499050887,-1000.0,0.00016438,2]
[384649866,1757499050896,-152.11596836,0.00016438,2]
[384649867,1757499050924,-847.88403164,0.00016438,2]
[384649868,1757499050933,-1000.0,0.00016438,2]
[384649869,1757499050942,-1000.0,0.00016438,2]
[384649870,1757499050951,-1000.0,0.00016438,2]
[384649871,1757499050960,-1000.0,0.00016438,2]
[384649872,1757499050970,-1000.0,0.00016438,2]
[384649873,1757499050979,-1000.0,0.00016438,2]
[384649874,1757499050993,-1000.0,0.00016438,2]
[384649875,1757499051002,-819.454209,0.00016438,2]
[384649876,1757499051012,-529.0,0.00016449,2]
[384649877,1757499051022,-409.0,0.00016504,2]
[384649878,1757499051033,-332.1185283,0.00016611,2]
[384649879,1757499051043,-1364.51,0.00016712,2]
[384649880,1757499051052,-691.05,0.00016712,2]
[384649881,1757499051063,-480.0,0.00016712,2]
[384649882,1757499051072,-480.0,0.00016712,2]
[384649883,1757499051082,-480.0,0.00016712,2]
[384649884,1757499051092,-480.0,0.00016712,2]
[384649885,1757499051102,-4002.23064132,0.00016712,2]
[384649886,1757499094162,-177.01210144,0.00013697,2]
[384649887,1757499094854,191.007324,0.00025,30]
[384649888,1757499095156,191.007324,0.00025,30]
[384649889,1757499095482,191.007324,0.00025,30]
[384649890,1757499095795,191.007324,0.00025,30]
[384649891,1757499096077,191.007324,0.00025,30]
[384649892,1757499102261,157.91998,0.000235,30]
[384649893,1757499123751,-186.99373193,0.00013696,2]
[384649895,1757499215375,-156.68162977,0.00013598,2]
[384649896,1757499273747,-290.13616409,0.00013597,2]
[384649900,1757499303311,-291.35041951,0.00013596,2]
[384649902,1757499363984,-255.9724317,0.00013595,2]
[384649905,1757499432280,-179.93467193,0.00013595,2]
[384649906,1757499580255,172.788499,0.00025,30]
[384650104,1757499700207,152.805859,0.00025,30]
[384650107,1757499700523,152.805859,0.00025,30]
[384650120,1757499700820,152.805859,0.00025,30]
[384650134,1757499701119,152.805859,0.00025,30]
[384650152,1757499701530,152.805859,0.00025,30]
[384650153,1757499723321,-1020.06532807,0.00013595,2]
[384650154,1757499723341,-300.0,0.00013595,2]
[384650155,1757499723351,-300.0,0.00013595,2]
[384650156,1757499723360,-300.0,0.00013595,2]
[384650157,1757499723370,-120.06532807,0.00013595,2]
[384650158,1757499723385,-59.86934386,0.00013595,2]
[384650160,1757499767998,-512.76360136,0.00013595,2]
[384650161,1757499808706,886.011156,0.00027397,120]
[384650404,1757499997129,180.554021,0.00025,30]
[384650600,1757500028117,-179.0,0.00013596,2]
[384650602,1757500028140,-300.0,0.00013596,2]
[384650604,1757500028161,-1200.0,0.00013596,2]
[384650606,1757500028182,-300.0,0.00013596,2]
[384650608,1757500028203,-209.86383591,0.00013597,2]
[384650610,1757500028222,-234.87795546,0.00013597,2]
[384650611,1757500028244,-500.0,0.00013597,2]
[384650613,1757500028267,-500.0,0.00013597,2]
[384650615,1757500028290,-500.0,0.00013597,2]
[384650617,1757500028314,-500.0,0.00013597,2]
[384650619,1757500028338,-500.0,0.00013597,2]
[384650621,1757500028361,-500.0,0.00013597,2]
[384650623,1757500028386,-500.0,0.00013597,2]
[384650625,1757500028407,-364.00583337,0.00013597,2]
[384650627,1757500028432,-500.0,0.00013597,2]
[384650629,1757500028454,-500.0,0.00013597,2]
[384650631,1757500028476,-500.0,0.00013597,2]
[384650633,1757500028498,-500.0,0.00013597,2]
[384650634,1757500028522,-516.19552208,0.00013597,2]
[384650636,1757500028545,-500.0,0.00013597,2]
[384650638,1757500028567,-500.0,0.00013597,2]
[384650640,1757500028592,-500.0,0.00013597,2]
[384650642,1757500028616,-500.0,0.00013597,2]
[384650644,1757500028638,-155.84804996,0.00013597,2]
[384650646,1757500028660,-500.0,0.00013597,2]
[384650648,1757500028684,-500.0,0.00013597,2]
[384650650,1757500028707,-500.0,0.00013597,2]
[384650652,1757500028730,-104.42384736,0.00013597,2]
[384650672,1757500032475,-274.36274418,0.00013596,2]
[384650675,1757500047984,274.36274418,0.000145,9]
[384650676,1757500056277,173.331856,0.00025,30]
[384650677,1757500056484,173.331856,0.00025,30]
[384650678,1757500056803,173.331856,0.00025,30]
[384650679,1757500057133,173.331856,0.00025,30]
[384650680,1757500057438,173.331856,0.00025,30]
[384650681,1757500115677,152.045489,0.00025,30]
[384650682,1757500116001,152.045489,0.00025,30]
[384650683,1757500116339,152.045489,0.00025,30]
[384650684,1757500116736,152.045489,0.00025,30]
[384650685,1757500136772,-172.68016149,0.00013596,2]
[384650703,1757500231888,-172.68016149,0.0001346,2]
[384650704,1757500231898,-752.95709433,0.00013596,2]
[384650705,1757500231907,-507.0,0.00013596,2]
[384650707,1757500231917,-354.92192741,0.00013597,2]
[384650709,1757500231926,-410.20023275,0.00013597,2]
[384650711,1757500231937,-427.70667634,0.00013597,2]
[384650713,1757500231946,-395.57615264,0.00013597,2]
[384650716,1757500231955,-125.01556838,0.00013597,2]
[384650721,1757500231972,-374.98443162,0.00013597,2]
[384650723,1757500231980,-500.0,0.00013597,2]
[384650725,1757500231988,-500.0,0.00013597,2]
[384650726,1757500231998,-500.0,0.00013597,2]
[384650727,1757500232007,-500.0,0.00013597,2]
[384650728,1757500232016,-500.0,0.00013597,2]
[384650729,1757500232026,-500.0,0.00013597,2]
[384650730,1757500232036,-500.0,0.00013597,2]
[384650731,1757500232045,-500.0,0.00013597,2]
[384650732,1757500232055,-500.0,0.00013597,2]
[384650733,1757500232064,-500.0,0.00013597,2]
[384650734,1757500232075,-500.0,0.00013597,2]
[384650735,1757500232085,-500.0,0.00013597,2]
[384650736,1757500232095,-533.46250285,0.00013597,2]
[384650737,1757500232105,-500.0,0.00013597,2]
[384650738,1757500232116,-500.0,0.00013597,2]
[384650739,1757500232126,-500.0,0.00013597,2]
[384650740,1757500232136,-500.0,0.00013597,2]
[384650741,1757500232146,-500.0,0.00013597,2]
[384650742,1757500232155,-500.0,0.00013597,2]
[384650743,1757500232164,-500.0,0.00013597,2]
[384650744,1757500232174,-300.0,0.00013597,2]
[384650745,1757500232184,-500.0,0.00013597,2]
[384650746,1757500232193,-500.0,0.00013597,2]
[384650747,1757500232203,-500.0,0.00013597,2]
[384650748,1757500232212,-620.0,0.00013597,2]
[384650749,1757500232222,-500.0,0.00013597,2]
[384650750,1757500232235,-500.0,0.00013597,2]
[384650751,1757500232246,-500.0,0.00013597,2]
[384650752,1757500232256,-9782.47803514,0.00013598,2]
[384650753,1757500232268,-130016.18816118,0.00013598,2]
[384650754,1757500232278,-155.0,0.00013697,2]
[384650755,1757500232287,-480.0,0.00013698,2]
[384650756,1757500232296,-480.0,0.00013698,2]
[384650757,1757500232307,-628.41000148,0.00013698,2]
[384650758,1757500232318,-480.0,0.00013698,2]
[384650759,1757500232328,-480.0,0.00013698,2]
[384650760,1757500232338,-480.0,0.00013698,2]
[384650761,1757500232347,-480.0,0.00013698,2]
[384650762,1757500232356,-1045.5,0.00013698,2]
[384650763,1757500232365,-480.0,0.00013698,2]
[384650764,1757500232376,-480.0,0.00013698,2]
[384650765,1757500232386,-480.0,0.00013698,2]
[384650766,1757500232395,-486.9,0.00013698,2]
[384650767,1757500232405,-480.0,0.00013698,2]
[384650768,1757500232415,-480.0,0.00013698,2]
[384650769,1757500232425,-1743.79,0.00013698,2]
[384650770,1757500232434,-480.0,0.00013698,2]
[384650771,1757500232444,-2305.8,0.00013698,2]
[384650772,1757500232454,-480.0,0.00013698,2]
[384650773,1757500232463,-480.0,0.00013698,2]
[384650774,1757500232472,-480.0,0.00013698,2]
[384650775,1757500232481,-480.0,0.00013698,2]
[384650776,1757500232490,-480.0,0.00013698,2]
[384650777,1757500232500,-480.0,0.00013698,2]
[384650778,1757500232509,-480.0,0.00013698,2]
[384650779,1757500232519,-480.0,0.00013698,2]
[384650780,1757500232648,-412.143664,0.00013699,2]
[384650781,1757500232659,-300.0,0.0001397,2]
[384650782,1757500232668,-300.0,0.0001397,2]
[384650783,1757500232682,-300.0,0.0001397,2]
[384650784,1757500232692,-300.0,0.0001397,2]
[384650785,1757500232702,-300.0,0.0001397,2]
[384650786,1757500232711,-300.0,0.0001397,2]
[384650787,1757500232721,-300.0,0.0001397,2]
[384650788,1757500232730,-300.0,0.0001397,2]
[384650789,1757500232740,-300.0,0.0001397,2]
[384650790,1757500232749,-300.0,0.0001397,2]
[384650791,1757500232759,-300.0,0.0001397,2]
[384650792,1757500232768,-300.0,0.0001397,2]
[384650793,1757500232779,-300.0,0.0001397,2]
[384650794,1757500232788,-300.0,0.0001397,2]
[384650795,1757500232798,-300.0,0.0001397,2]
[384650796,1757500232808,-600.0,0.0001397,2]
[384650797,1757500232818,-480.0,0.00013972,2]
[384650798,1757500232828,-480.0,0.00013972,2]
[384650799,1757500232837,-184.52,0.00013972,2]
[384650800,1757500232847,-480.0,0.00013972,2]
[384650801,1757500232857,-480.0,0.00013972,2]
[384650802,1757500232866,-480.0,0.00013972,2]
[384650803,1757500232876,-1045.5,0.00013972,2]
[384650804,1757500232885,-480.0,0.00013972,2]
[384650805,1757500232895,-480.0,0.00013972,2]
[384650806,1757500232904,-480.0,0.00013972,2]
[384650807,1757500232914,-480.0,0.00013972,2]
[384650808,1757500232923,-1743.79,0.00013972,2]
[384650809,1757500232932,-2305.8,0.00013972,2]
[384650810,1757500232941,-480.0,0.00013972,2]
[384650811,1757500232951,-480.0,0.00013972,2]
[384650812,1757500232960,-480.0,0.00013972,2]
[384650813,1757500232970,-480.0,0.00014246,2]
[384650814,1757500232979,-480.0,0.00014246,2]
[384650815,1757500232989,-480.0,0.00014246,2]
[384650816,1757500232999,-480.0,0.00014246,2]
[384650817,1757500233008,-480.0,0.00014246,2]
[384650818,1757500233018,-1045.5,0.00014246,2]
[384650819,1757500233027,-480.0,0.00014246,2]
[384650820,1757500233038,-480.0,0.00014246,2]
[384650821,1757500233047,-480.0,0.00014246,2]
[384650822,1757500233057,-480.0,0.00014246,2]
[384650823,1757500233067,-1743.79,0.00014246,2]
[384650824,1757500233077,-2305.8,0.00014246,2]
[384650825,1757500233086,-480.0,0.00014246,2]
[384650826,1757500233096,-480.0,0.00014246,2]
[384650827,1757500233105,-157.64,0.00014248,2]
[384650828,1757500233115,-500.0,0.00014294,2]
[384650829,1757500233124,-297.92872535,0.00014367,2]
[384650830,1757500233133,-160.0,0.00014464,2]
[384650831,1757500233143,-160.0,0.00014465,2]
[384650832,1757500233152,-160.0,0.00014465,2]
[384650833,1757500233161,-417.15472785,0.00014465,2]
[384650834,1757500233171,-160.0,0.00014465,2]
[384650835,1757500233180,-530.87637315,0.00014465,2]
[384650836,1757500233190,-160.0,0.00014465,2]
[384650837,1757500233199,-203.30414021,0.00014465,2]
[384650838,1757500233208,-160.0,0.00014465,2]
[384650839,1757500233218,-846.88337432,0.00014465,2]
[384650840,1757500233228,-217.67150996,0.00014465,2]
[384650841,1757500233237,-233.08191698,0.00014465,2]
[384650842,1757500233247,-240.23437387,0.00014518,2]
[384650843,1757500233256,-18603.8837,0.00014519,2]
[384650844,1757500233266,-151.0,0.00014519,2]
[384650845,1757500233275,-151.0,0.00014519,2]
[384650846,1757500233285,-151.0,0.00014519,2]
[384650847,1757500233294,-157.0,0.0001452,2]
[384650848,1757500233303,-157.0,0.0001452,2]
[384650849,1757500233313,-186.0,0.0001452,2]
[384650850,1757500233323,-157.0,0.0001452,2]
[384650851,1757500233332,-186.0,0.0001452,2]
[384650852,1757500233342,-157.0,0.0001452,2]
[384650853,1757500233351,-157.0,0.0001452,2]
[384650854,1757500233361,-186.0,0.0001452,2]
[384650855,1757500233370,-190.06537616,0.0001452,2]
[384650856,1757500233383,-111.93462384,0.0001452,2]
[384650857,1757500233394,-480.0,0.0001452,2]
[384650858,1757500233404,-614.57131511,0.0001452,2]
[384650859,1757500233414,-157.0,0.0001452,2]
[384650860,1757500233428,-180.0,0.0001452,2]
[384650861,1757500233440,-157.0,0.0001452,2]
[384650862,1757500233450,-248.13637627,0.0001452,2]
[384650863,1757500233460,-480.0,0.0001452,2]
[384650864,1757500233469,-480.0,0.0001452,2]
[384650865,1757500233478,-480.0,0.0001452,2]
[384650866,1757500233488,-1045.5,0.0001452,2]
[384650867,1757500233497,-480.0,0.0001452,2]
[384650868,1757500233507,-480.0,0.0001452,2]
[384650869,1757500233517,-471.56974729,0.0001452,2]
[384650870,1757500233528,-480.0,0.0001452,2]
[384650871,1757500233537,-1743.79,0.0001452,2]
[384650872,1757500233547,-171.80830803,0.0001452,2]
[384650873,1757500233559,-1918.79612109,0.0001452,2]
[384650874,1757500233584,-189.19450666,0.00014518,2]
[384650875,1757500233594,-215.19557088,0.0001452,2]
[384650876,1757500233604,-480.0,0.0001452,2]
[384650877,1757500233613,-233.25019213,0.0001452,2]
[384651224,1757500243016,172.788499,0.00025,30]
[384651414,1757500246948,-0.0111394,0.00013698,2]
[384651435,1757500295693,311.50329,0.00025,30]
[384651436,1757500296011,311.50329,0.00025,30]
[384651437,1757500296325,311.50329,0.00025,30]
[384651438,1757500296652,311.50329,0.00025,30]
[384651439,1757500296951,311.50329,0.00025,30]
[384651870,1757500587915,-1000.0,0.00018966,20]
[384651879,1757500734325,664.508367,0.00027397,120]
[384651889,1757500839773,-163.27744421,0.00013498,2]
[384651891,1757500860192,163.27744421,0.00013363,2]
[384651892,1757500895315,259.586075,0.00025,30]
[384651893,1757500895633,259.586075,0.00025,30]
[384651894,1757500895928,259.586075,0.00025,30]
[384651895,1757500896881,259.586075,0.00025,30]
[384651896,1757500897269,259.586075,0.00025,30]
[384651897,1757500906933,2519.62996877,0.00025,30]
[384651898,1757500988417,250.8,0.00027397,120]
[384651909,1757501249118,-5956.59610458,0.00013498,2]
[384651910,1757501249138,-183.51227797,0.00013596,2]
[384651911,1757501249159,-830.10440818,0.00013598,2]
[384651912,1757501249181,-1200.0,0.00013696,2]
[384651913,1757501249202,-300.0,0.00013696,2]
[384651914,1757501249222,-1088.239552,0.00013696,2]
[384651956,1757501435581,-111.760448,0.00013696,2]
[384651957,1757501435591,-300.0,0.00013697,2]
[384651958,1757501435600,-300.0,0.00013697,2]
[384651959,1757501435609,-300.0,0.00013697,2]
[384651961,1757501435618,-300.0,0.00013697,2]
[384651962,1757501435627,-300.0,0.00013697,2]
[384651963,1757501435636,-480.0,0.00013698,2]
[384651964,1757501435647,-480.0,0.00013698,2]
[384651965,1757501435656,-480.0,0.00013698,2]
[384651967,1757501435666,-333.83923409,0.00013698,2]
[384651969,1757501435684,-480.0,0.00013698,2]
[384651970,1757501435694,-2798.51,0.00013698,2]
[384651972,1757501435704,-2798.51,0.00013698,2]
[384651974,1757501435714,-2798.51,0.00013698,2]
[384651976,1757501435724,-2798.51,0.00013698,2]
[384651979,1757501435734,-2798.51,0.00013698,2]
[384651981,1757501435746,-2798.51,0.00013698,2]
[384651983,1757501435762,-2798.51,0.00013698,2]
[384651985,1757501435772,-2798.51,0.00013698,2]
[384651986,1757501435781,-480.0,0.00013698,2]
[384651988,1757501435790,-480.0,0.00013698,2]
[384651990,1757501435799,-207.61520257,0.00013698,2]
[384651991,1757501435808,-480.0,0.00013698,2]
[384651992,1757501435817,-480.0,0.00013698,2]
[384651993,1757501435826,-480.0,0.00013698,2]
[384651994,1757501435836,-474.75949799,0.00013698,2]
[384651995,1757501435845,-1720.17,0.00013698,2]
[384651996,1757501435854,-480.0,0.00013698,2]
[384651997,1757501435863,-690.93,0.00013698,2]
[384651998,1757501435872,-619.32,0.00013698,2]
[384651999,1757501435882,-480.0,0.00013698,2]
[384652000,1757501435891,-480.0,0.00013698,2]
[384652001,1757501435900,-480.0,0.00013698,2]
[384652002,1757501435911,-480.0,0.00013698,2]
[384652003,1757501435920,-480.0,0.00013698,2]
[384652004,1757501435928,-477.0105559,0.00013698,2]
[384652005,1757501435938,-480.0,0.00013698,2]
[384652006,1757501435947,-484.05013618,0.00013698,2]
[384652007,1757501435955,-481.58384119,0.00013698,2]
[384652008,1757501435964,-690.36,0.00013698,2]
[384652009,1757501435974,-465.85,0.00013698,2]
[384652010,1757501435983,-480.0,0.00013698,2]
[384652011,1757501435992,-480.0,0.00013698,2]
[384652012,1757501436001,-480.0,0.00013698,2]
[384652013,1757501436011,-480.0,0.00013698,2]
[384652014,1757501436020,-480.0,0.00013698,2]
[384652015,1757501436030,-3420.3,0.00013698,2]
[384652016,1757501436040,-1921.5,0.00013698,2]
[384652017,1757501436050,-480.0,0.00013698,2]
[384652018,1757501436059,-480.0,0.00013698,2]
[384652019,1757501436068,-437.33975097,0.00013698,2]
[384652020,1757501436078,-480.0,0.00013698,2]
[384652021,1757501436087,-314.2058312,0.00013698,2]
[384652022,1757501436096,-480.91639339,0.00013698,2]
[384652023,1757501436105,-480.0,0.00013698,2]
[384652024,1757501436116,-480.0,0.00013698,2]
[384652025,1757501436245,-449.893669,0.00013699,2]
[384652026,1757501436256,-191.9831289,0.00013699,2]
[384652027,1757501436265,-283.93754192,0.00013871,2]
[384652028,1757501436275,-500.0,0.00013899,2]
[384652029,1757501436285,-500.0,0.00013899,2]
[384652030,1757501436295,-500.0,0.00013899,2]
[384652031,1757501436306,-500.0,0.00013899,2]
[384652032,1757501436316,-500.0,0.00013899,2]
[384652033,1757501436326,-500.0,0.00013899,2]
[384652034,1757501436336,-239.53867222,0.00013899,2]
[384652035,1757501436345,-612.91061356,0.00013899,2]
[384652036,1757501436354,-500.0,0.00013899,2]
[384652037,1757501436364,-500.0,0.00013899,2]
[384652038,1757501436373,-500.0,0.00013899,2]
[384652039,1757501436382,-500.0,0.00013899,2]
[384652040,1757501436391,-433.34625029,0.00013899,2]
[384652041,1757501436401,-48647.04002648,0.000139,2]
[384652042,1757501436486,-640.69884951,0.000139,2]
[384652048,1757501438034,-11707.6655,0.000139,2]
[384652049,1757501438045,-11603.85195205,0.000139,2]
[384652050,1757501438057,-3214.82123974,0.000139,2]
[384652054,1757501439862,-184.11073457,0.00013698,2]
[384652187,1757501443059,-295.88926543,0.00013698,2]
[384652188,1757501443069,-480.0,0.00013698,2]
[384652190,1757501443079,-61.54073457,0.00013698,2]
[384652191,1757501443117,-6.3608001,0.00013698,2]
[384652192,1757501443221,-412.09846533,0.00013698,2]
[384652193,1757501443231,-30059.27027923,0.000139,2]
[384652194,1757501443241,-300.0,0.00013971,2]
[384652195,1757501443250,-300.0,0.00013971,2]
[384652196,1757501443259,-300.0,0.00013971,2]
[384652198,1757501443268,-300.0,0.00013971,2]
[384652199,1757501443278,-300.0,0.00013971,2]
[384652201,1757501443287,-300.0,0.00013971,2]
[384652203,1757501443296,-300.0,0.00013971,2]
[384652204,1757501443305,-300.0,0.00013971,2]
[384652206,1757501443314,-300.0,0.00013971,2]
[384652208,1757501443323,-300.0,0.00013971,2]
[384652209,1757501443333,-300.0,0.00013971,2]
[384652210,1757501443342,-300.0,0.00013971,2]
[384652211,1757501443351,-300.0,0.00013971,2]
[384652212,1757501443361,-300.0,0.00013971,2]
[384652213,1757501443370,-300.0,0.00013971,2]
[384652215,1757501443379,-2798.51,0.00013971,2]
[384652217,1757501443388,-480.0,0.00013972,2]
[384652218,1757501443397,-480.0,0.00013972,2]
[384652220,1757501443406,-1720.17,0.00013972,2]
[384652221,1757501443416,-480.0,0.00013972,2]
[384652222,1757501443425,-690.93,0.00013972,2]
[384652223,1757501443434,-480.0,0.00013972,2]
[384652224,1757501443443,-690.36,0.00013972,2]
[384652225,1757501443452,-480.0,0.00013972,2]
[384652226,1757501443461,-480.0,0.00013972,2]
[384652227,1757501443470,-3420.3,0.00013972,2]
[384652228,1757501443479,-1921.5,0.00013972,2]
[384652229,1757501443488,-459.34,0.00013972,2]
[384652230,1757501443498,-310.65322788,0.00013972,2]
[384652231,1757501443507,-480.0,0.00013972,2]
[384652232,1757501443517,-480.0,0.00013972,2]
[384652233,1757501443526,-480.0,0.00013972,2]
[384652234,1757501443535,-480.0,0.00013972,2]
[384652235,1757501443545,-480.0,0.00013972,2]
[384652236,1757501443557,-168.16406171,0.00013999,2]
[384652237,1757501443567,-32205.49587163,0.00014,3]
[384652238,1757501443577,-224.19956718,0.00014,3]
[384652239,1757501443586,-160.0,0.00014,3]
[384652240,1757501443595,-480.0,0.00014246,2]
[384652241,1757501443604,-447.14223709,0.00014246,2]
[384652242,1757501443613,-1720.17,0.00014246,2]
[384652243,1757501443623,-480.0,0.00014246,2]
[384652244,1757501443634,-690.93,0.00014246,2]
[384652245,1757501443644,-480.0,0.00014246,2]
[384652246,1757501443653,-690.36,0.00014246,2]
[384652247,1757501443662,-480.0,0.00014246,2]
[384652248,1757501443672,-480.0,0.00014246,2]
[384652249,1757501443681,-3420.3,0.00014246,2]
[384652250,1757501443690,-1921.5,0.00014246,2]
[384652251,1757501443700,-480.0,0.00014246,2]
[384652252,1757501443709,-480.0,0.00014246,2]
[384652253,1757501443718,-480.0,0.00014246,2]
[384652254,1757501443728,-480.0,0.00014246,2]
[384652255,1757501443738,-480.0,0.00014246,2]
[384652256,1757501443747,-600.0,0.00014249,2]
[384652258,1757501443757,-417.15472785,0.00014471,2]
[384652260,1757501443766,-160.0,0.00014472,2]